lending/lending_fUSD_20260206
["ID","MTS","AMOUNT","RATE_DAILY","PERIOD"]
[404659243,1770389447978,-500.0,0.00043287,120]
[404659244,1770389447988,-500.0,0.00043287,120]
[404659245,1770389447998,-500.0,0.00043287,120]
[404659246,1770389448008,-500.0,0.00043287,120]
[404659247,1770389448017,-500.0,0.00043287,120]
[404659248,1770389448027,-500.0,0.00043287,120]
[404659249,1770389448037,-500.0,0.00043287,120]
[404659250,1770389448046,-503.60000002,0.00043287,120]
[404659251,1770389448055,-500.0,0.00043287,2]
[404659252,1770389448064,-501.0,0.00043287,2]
[404659253,1770389448074,-551.53073013,0.00043287,120]
[404659254,1770389448084,-5958.25124478,0.00043287,30]
[404659255,1770389448095,-2000.0,0.000433,2]
[404659256,1770389448105,-223.16,0.000433,14]
[404659257,1770389448114,-654.43013543,0.00043453,2]
[404659258,1770389448124,-654.43013543,0.00043453,2]
[404659259,1770389448133,-654.43013543,0.00043453,2]
[404659260,1770389448143,-555.95155872,0.00043472,2]
[404659261,1770389448153,-555.95155872,0.00043472,2]
[404659262,1770389448162,-555.95155872,0.00043472,2]
[404659263,1770389448171,-722.68148171,0.00043491,2]
[404659264,1770389448181,-1000.0,0.00043547,30]
[404659265,1770389448191,-500.0,0.00043574,60]
[404659266,1770389448202,-700.0,0.00043574,60]
[404659267,1770389448212,-500.0,0.00043574,60]
[404659268,1770389448221,-65904.0,0.00043654,30]
[404659269,1770389448230,-314.126465,0.00043673,10]
[404659270,1770389448240,-266.85674818,0.00043693,10]
[404659271,1770389448249,-10144.9911,0.000437,2]
[404659272,1770389448259,-14669.39920007,0.000438,30]
[404659273,1770389448268,-465.75379457,0.0004399,7]
[404659274,1770389448277,-151.0,0.00043997,120]
[404659275,1770389448286,-5834.77415153,0.00044,120]
[404659276,1770389448296,-200000.00000002,0.00044,30]
[404659277,1770389448307,-5198.03490484,0.00044,60]
[404659278,1770389448317,-10000.0,0.00044,2]
[404659279,1770389448326,-160.0,0.00044,30]
[404659280,1770389448335,-160.0,0.00044,120]
[404659281,1770389448345,-196.04586936,0.00044016,120]
[404659282,1770389448354,-173.38141968,0.00044034,19]
[404659283,1770389448363,-200.37901006,0.00044035,14]
[404659284,1770389448376,-151.0,0.00044035,120]
[404659285,1770389448386,-151.0,0.00044035,120]
[404659286,1770389448396,-821.058061,0.00044035,120]
[404659287,1770389448408,-821.058061,0.00044035,120]
[404659288,1770389448418,-821.058061,0.00044035,120]
[404659289,1770389448427,-821.058061,0.00044035,120]
[404659290,1770389448436,-187.757563,0.00044035,120]
[404659291,1770389448446,-187.757563,0.00044035,120]
[404659292,1770389448459,-187.757563,0.00044035,120]
[404659293,1770389448469,-187.757563,0.00044035,120]
[404659294,1770389448479,-151.0,0.00044035,120]
[404659295,1770389448489,-245.939486,0.00044035,120]
[404659296,1770389448499,-245.939486,0.00044035,120]
[404659297,1770389448510,-245.939486,0.00044035,120]
[404659298,1770389448520,-245.939486,0.00044035,120]
[404659299,1770389448529,-151.0,0.00044035,14]
[404659300,1770389448540,-164.1408,0.00044035,120]
[404659301,1770389448550,-151.0,0.00044035,14]
[404659302,1770389448561,-164.1408,0.00044035,120]
[404659303,1770389448571,-164.1408,0.00044035,120]
[404659304,1770389448582,-164.1408,0.00044035,120]
[404659305,1770389448592,-164.096166,0.00044035,120]
[404659306,1770389448601,-164.096166,0.00044035,120]
[404659307,1770389448611,-164.096166,0.00044035,120]
[404659308,1770389448621,-164.096166,0.00044035,120]
[404659309,1770389448631,-159.97737619,0.00044053,2]
[404659310,1770389448641,-1000.0,0.00044082,30]
[404659311,1770389448651,-500.0,0.00044094,120]
[404659312,1770389448660,-65904.0,0.00044095,30]
[404659313,1770389448670,-151.0,0.00044095,28]
[404659314,1770389448680,-270.650576,0.00044095,28]
[404659315,1770389448689,-150.00000001,0.00044096,30]
[404659316,1770389448702,-726.15338953,0.000441,120]
[404659317,1770389448713,-1599.84,0.000441,120]
[404659318,1770389448723,-204.03399859,0.000441,120]
[404659319,1770389448733,-351.50732731,0.000441,120]
[404659320,1770389448743,-352.35534386,0.000441,120]
[404659321,1770389448753,-321.74771449,0.000441,120]
[404659322,1770389448763,-1025.81525186,0.000441,120]
[404659323,1770389448773,-180.22679478,0.000441,120]
[404659324,1770389448784,-1807.91126634,0.000441,120]
[404659325,1770389448796,-404.26890344,0.000441,120]
[404659326,1770389448805,-178.4,0.000441,29]
[404659327,1770389448815,-283.9,0.000441,60]
[404659328,1770389448825,-151.6725,0.000441,2]
[404659329,1770389448835,-985.0,0.000441,30]
[404659330,1770389448844,-1294.18989436,0.000441,30]
[404659331,1770389448854,-1294.18989436,0.000441,30]
[404659332,1770389448864,-7422.66895501,0.00044104,7]
[404659333,1770389448876,-800.0,0.00044106,16]
[404659334,1770389448886,-800.0,0.00044106,16]
[404659335,1770389448896,-800.0,0.00044106,16]
[404659336,1770389448905,-800.0,0.00044106,16]
[404659337,1770389448915,-800.0,0.00044106,16]
[404659338,1770389448925,-800.0,0.00044106,16]
[404659339,1770389448934,-800.0,0.00044106,16]
[404659340,1770389448944,-800.0,0.00044106,16]
[404659341,1770389448956,-800.0,0.00044106,32]
[404659342,1770389448965,-151.0,0.00044107,120]
[404659343,1770389448978,-200.0,0.00044107,120]
[404659344,1770389448988,-500.0,0.00044109,120]
[404659345,1770389448997,-500.0,0.00044109,120]
[404659346,1770389449007,-500.0,0.00044109,120]
[404659347,1770389449017,-655004.16757303,0.0004411,10]
[404659348,1770389449027,-150.0,0.0004411,2]
[404659349,1770389449037,-500.0,0.0004411,120]
[404659350,1770389449047,-500.0,0.0004411,120]
[404659351,1770389449056,-500.0,0.0004411,120]
[404659352,1770389449066,-500.0,0.0004411,120]
[404659353,1770389449075,-500.0,0.0004411,120]
[404659354,1770389449085,-500.0,0.0004411,120]
[404659355,1770389449095,-500.0,0.0004411,120]
[404659356,1770389449105,-500.0,0.0004411,120]
[404659357,1770389449115,-500.0,0.0004411,120]
[404659358,1770389449124,-151.590644,0.0004411,120]
[404659359,1770389449134,-151.0,0.0004411,120]
[404659360,1770389449143,-151.0,0.0004411,120]
[404659361,1770389449153,-151.0,0.0004411,120]
[404659362,1770389449162,-151.0,0.0004411,120]
[404659363,1770389449172,-169.845,0.0004411,120]
[404659364,1770389449181,-169.845,0.0004411,120]
[404659365,1770389449190,-169.845,0.0004411,120]
[404659366,1770389449202,-169.845,0.0004411,120]
[404659367,1770389449211,-151.0,0.0004411,120]
[404659368,1770389449221,-151.0,0.0004411,120]
[404659369,1770389449231,-151.0,0.0004411,28]
[404659370,1770389449240,-151.0,0.0004411,120]
[404659371,1770389449250,-151.0,0.0004411,120]
[404659372,1770389449260,-821.058061,0.0004411,120]
[404659373,1770389449269,-821.058061,0.0004411,120]
[404659374,1770389449279,-821.058061,0.0004411,120]
[404659375,1770389449289,-821.058061,0.0004411,120]
[404659376,1770389449299,-187.757563,0.0004411,120]
[404659377,1770389449309,-187.757563,0.0004411,120]
[404659378,1770389449320,-187.757563,0.0004411,120]
[404659379,1770389449329,-187.757563,0.0004411,120]
[404659380,1770389449339,-246.882604,0.0004411,120]
[404659381,1770389449349,-245.939486,0.0004411,120]
[404659382,1770389449358,-245.939486,0.0004411,120]
[404659383,1770389449369,-245.939486,0.0004411,120]
[404659384,1770389449380,-245.939486,0.0004411,120]
[404659385,1770389449389,-151.0,0.0004411,14]
[404659386,1770389449399,-164.1408,0.0004411,120]
[404659387,1770389449409,-151.0,0.0004411,14]
[404659388,1770389449421,-164.1408,0.0004411,120]
[404659389,1770389449431,-164.1408,0.0004411,120]
[404659390,1770389449441,-164.1408,0.0004411,120]
[404659391,1770389449452,-164.096166,0.0004411,120]
[404659392,1770389449462,-164.096166,0.0004411,120]
[404659393,1770389449471,-164.096166,0.0004411,120]
[404659394,1770389449481,-164.096166,0.0004411,120]
[404659395,1770389449491,-151.0,0.0004411,90]
[404659396,1770389449501,-151.0,0.0004411,90]
[404659397,1770389449510,-190.139082,0.0004411,120]
[404659398,1770389449520,-450.27169048,0.0004411,2]
[404659399,1770389449530,-5958.25124478,0.0004411,30]
[404659400,1770389449540,-5958.25124478,0.0004411,30]
[404659401,1770389449550,-5958.25124478,0.0004411,30]
[404659402,1770389449559,-5958.25124478,0.0004411,30]
[404659403,1770389449569,-500.0,0.00044111,30]
[404659404,1770389449579,-239.36372835,0.00044111,120]
[404659405,1770389449589,-1504.0,0.00044111,14]
[404659406,1770389449599,-1504.0,0.00044111,14]
[404659407,1770389449609,-1504.0,0.00044111,14]
[404659408,1770389449618,-200.0,0.00044111,7]
[404659409,1770389449628,-448.56432208,0.00044111,30]
[404659410,1770389449638,-200.0,0.00044111,7]
[404659411,1770389449647,-213.89063578,0.00044111,14]
[404659412,1770389449657,-190.15567148,0.00044111,7]
[404659413,1770389449667,-300.0,0.00044111,14]
[404659414,1770389449677,-151.0,0.00044111,14]
[404659415,1770389449687,-152.24894628,0.00044111,14]
[404659416,1770389449697,-150.0,0.00044112,2]
[404659417,1770389449709,-150.0,0.00044112,2]
[404659418,1770389449719,-150.0,0.00044114,2]
[404659419,1770389449729,-314.126465,0.00044114,10]
[404659420,1770389449739,-63425.74939749,0.00044114,30]
[404659421,1770389449748,-465920.71958299,0.00044114,30]
[404659422,1770389449758,-470.22748251,0.00044116,120]
[404659423,1770389449768,-317.1519046,0.00044119,30]
[404659424,1770389449777,-317.1519046,0.00044119,30]
[404659425,1770389449787,-317.1519046,0.00044119,30]
[404659426,1770389449798,-317.1519046,0.00044119,30]
[404659427,1770389449809,-317.1519046,0.00044119,30]
[404659428,1770389449818,-317.1519046,0.00044119,30]
[404659429,1770389449827,-317.1519046,0.00044119,30]
[404659430,1770389449838,-317.1519046,0.00044119,30]
[404659431,1770389449847,-317.1519046,0.00044119,30]
[404659432,1770389449858,-317.1519046,0.00044119,30]
[404659433,1770389449868,-317.1519046,0.00044119,30]
[404659434,1770389449881,-317.1519046,0.00044119,30]
[404659435,1770389449892,-317.1519046,0.00044119,30]
[404659436,1770389449901,-317.1519046,0.00044119,30]
[404659437,1770389449912,-317.1519046,0.00044119,30]
[404659438,1770389449922,-317.1519046,0.00044119,30]
[404659439,1770389449932,-317.1519046,0.00044119,30]
[404659440,1770389449942,-317.1519046,0.00044119,30]
[404659441,1770389449953,-317.1519046,0.00044119,30]
[404659442,1770389449963,-317.1519046,0.00044119,30]
[404659443,1770389449972,-151.0,0.0004412,30]
[404659444,1770389449982,-1099.66546915,0.00044121,30]
[404659445,1770389449992,-700.0,0.00044122,60]
[404659446,1770389450002,-150.0,0.00044122,2]
[404659447,1770389450012,-171.45234751,0.00044122,30]
[404659448,1770389450022,-200.0,0.0004413,30]
[404659449,1770389450032,-151.0,0.00044132,120]
[404659450,1770389450042,-155.096329,0.00044134,120]
[404659451,1770389450052,-151.0,0.00044134,120]
[404659452,1770389450063,-151.0,0.00044134,120]
[404659453,1770389450072,-151.0,0.00044134,120]
[404659454,1770389450082,-151.0,0.00044134,120]
[404659455,1770389450092,-151.0,0.00044134,120]
[404659456,1770389450102,-151.0,0.00044134,120]
[404659457,1770389450112,-169.845,0.00044134,120]
[404659458,1770389450122,-169.845,0.00044134,120]
[404659459,1770389450132,-169.845,0.00044134,120]
[404659460,1770389450142,-169.845,0.00044134,120]
[404659461,1770389450152,-169.845,0.00044134,120]
[404659462,1770389450162,-169.845,0.00044134,120]
[404659463,1770389450172,-169.845,0.00044134,120]
[404659464,1770389450183,-169.845,0.00044134,120]
[404659465,1770389450192,-169.845,0.00044134,120]
[404659466,1770389450205,-169.845,0.00044134,120]
[404659467,1770389450217,-169.845,0.00044134,120]
[404659468,1770389450226,-169.845001,0.00044134,120]
[404659469,1770389450237,-151.0,0.00044134,120]
[404659470,1770389450246,-151.0,0.00044134,120]
[404659471,1770389450256,-151.0,0.00044134,120]
[404659472,1770389450266,-266.85674818,0.00044134,10]
[404659473,1770389450277,-151.0,0.00044135,28]
[404659474,1770389450286,-151.0,0.00044135,28]
[404659475,1770389450296,-151.0,0.00044135,120]
[404659476,1770389450307,-151.0,0.00044135,120]
[404659477,1770389450316,-151.0,0.00044135,120]
[404659478,1770389450326,-821.058061,0.00044135,120]
[404659479,1770389450336,-821.058061,0.00044135,120]
[404659480,1770389450346,-821.058061,0.00044135,120]
[404659481,1770389450356,-821.058061,0.00044135,120]
[404659482,1770389450365,-821.058061,0.00044135,120]
[404659483,1770389450374,-821.058061,0.00044135,120]
[404659484,1770389450383,-821.058061,0.00044135,120]
[404659485,1770389450393,-821.058057,0.00044135,120]
[404659486,1770389450402,-187.757563,0.00044135,120]
[404659487,1770389450414,-187.757563,0.00044135,120]
[404659488,1770389450423,-187.757563,0.00044135,120]
[404659489,1770389450433,-187.757563,0.00044135,120]
[404659490,1770389450444,-187.757563,0.00044135,120]
[404659491,1770389450454,-187.757563,0.00044135,120]
[404659492,1770389450464,-187.757563,0.00044135,120]
[404659493,1770389450473,-187.757565,0.00044135,120]
[404659494,1770389450483,-245.939486,0.00044135,120]
[404659495,1770389450493,-245.939486,0.00044135,120]
[404659496,1770389450502,-245.939486,0.00044135,120]
[404659497,1770389450512,-245.939486,0.00044135,120]
[404659498,1770389450522,-245.939486,0.00044135,120]
[404659499,1770389450531,-245.939486,0.00044135,120]
[404659500,1770389450542,-245.939486,0.00044135,120]
[404659501,1770389450552,-245.93949,0.00044135,120]
[404659502,1770389450561,-151.0,0.00044153,14]
[404659503,1770389450570,-151.0,0.00044153,14]
[404659504,1770389450580,-164.1408,0.00044153,120]
[404659505,1770389450589,-151.0,0.00044153,14]
[404659506,1770389450598,-164.1408,0.00044153,120]
[404659507,1770389450608,-262.124032,0.00044153,14]
[404659508,1770389450618,-164.1408,0.00044153,120]
[404659509,1770389450628,-164.1408,0.00044153,120]
[404659510,1770389450639,-164.1408,0.00044153,120]
[404659511,1770389450649,-164.1408,0.00044153,120]
[404659512,1770389450659,-164.1408,0.00044153,120]
[404659513,1770389450669,-164.1408,0.00044153,120]
[404659514,1770389450679,-164.096166,0.00044153,120]
[404659515,1770389450689,-164.096166,0.00044153,120]
[404659516,1770389450700,-164.096166,0.00044153,120]
[404659517,1770389450712,-164.096166,0.00044153,120]
[404659518,1770389450722,-164.096166,0.00044153,120]
[404659519,1770389450732,-164.096166,0.00044153,120]
[404659520,1770389450743,-164.096166,0.00044153,120]
[404659521,1770389450754,-164.096161,0.00044153,120]
[404659522,1770389450764,-151.0,0.00044153,90]
[404659523,1770389450774,-151.0,0.00044153,90]
[404659524,1770389450784,-151.0,0.00044153,90]
[404659525,1770389450794,-151.0,0.00044153,90]
[404659526,1770389450804,-227.98347,0.00044153,90]
[404659527,1770389450814,-1028.0,0.00044153,30]
[404659528,1770389450825,-6143861.79800485,0.00044153,10]
[404659529,1770389450836,-497.3393146,0.00044153,3]
[404659530,1770389450846,-1300.54003368,0.00044153,2]
[404659531,1770389450856,-673.20337355,0.00044153,2]
[404659532,1770389450866,-14108.89715258,0.00044153,2]
[404659533,1770389450876,-397.98236868,0.00044153,2]
[404659534,1770389450887,-205534.22261207,0.00044153,2]
[404659535,1770389450897,-1210.0,0.00044153,2]
[404659536,1770389450908,-715.52143867,0.00044153,2]
[404659537,1770389451123,-354.52251298,0.00044153,2]
[404659538,1770389451138,-1547.44993795,0.00044153,2]
[404659539,1770389451148,-1047.99248191,0.00044153,2]
[404659540,1770389451158,-5278.81774841,0.00044153,2]
[404659541,1770389451168,-352.89098545,0.00044153,2]
[404659542,1770389451178,-308.42801503,0.00044153,2]
[404659543,1770389451187,-2498.73330676,0.00044153,2]
[404659544,1770389451197,-2751.44477601,0.00044153,2]
[404659545,1770389451210,-153.99217597,0.00044153,2]
[404659546,1770389451219,-1707.18086915,0.00044153,2]
[404659547,1770389451229,-253.56087192,0.00044153,2]
[404659548,1770389451238,-500.0,0.00044153,2]
[404659549,1770389451247,-1283.72202398,0.00044153,2]
[404659550,1770389451255,-1060.05773315,0.00044153,2]
[404659551,1770389451264,-554.94467145,0.00044153,2]
[404659552,1770389451274,-9395.57935652,0.00044153,2]
[404659553,1770389451283,-1334.84423763,0.00044153,2]
[404659554,1770389451293,-3480.05157007,0.00044153,2]
[404659555,1770389451302,-2234.95299549,0.00044153,2]
[404659556,1770389451312,-760.7575126,0.00044153,2]
[404659557,1770389451321,-187.29873594,0.00044153,2]
[404659558,1770389451334,-643.0,0.00044153,2]
[404659559,1770389451344,-987.66885053,0.00044153,2]
[404659560,1770389451353,-583.13054355,0.00044153,2]
[404659561,1770389451363,-676245.05345423,0.00044153,2]
[404659562,1770389451372,-3297.52024428,0.00044153,2]
[404659563,1770389451383,-178.4519238,0.00044153,2]
[404659564,1770389451392,-7397.73636031,0.00044153,2]
[404659565,1770389451403,-550.0,0.00044153,2]
[404659566,1770389451414,-232.83779299,0.00044153,2]
[404659567,1770389451423,-176.70484165,0.00044153,2]
[404659568,1770389451433,-28532.93766295,0.00044153,2]
[404659569,1770389451443,-6000.0,0.00044153,2]
[404659570,1770389451456,-381.71959626,0.00044153,2]
[404659571,1770389451465,-1050.86430662,0.00044153,2]
[404659572,1770389451475,-50018.7855223,0.00044153,2]
[404659573,1770389451486,-637.34241213,0.00044153,2]
[404659574,1770389451496,-218.49503903,0.00044153,2]
[404659575,1770389451506,-1085.27360872,0.00044153,2]
[404659576,1770389451516,-2500.0,0.00044153,2]
[404659577,1770389451525,-348.05285294,0.00044153,2]
[404659578,1770389451535,-1100.0,0.00044153,2]
[404659579,1770389451545,-928.04268833,0.00044153,2]
[404659580,1770389451554,-489.97743097,0.00044153,2]
[404659581,1770389451565,-1614.99908123,0.00044153,2]
[404659582,1770389451575,-557.87446429,0.00044153,2]
[404659583,1770389451584,-1029.42700215,0.00044153,2]
[404659584,1770389451594,-371.17945801,0.00044153,2]
[404659585,1770389451604,-2241.89550005,0.00044153,2]
[404659586,1770389451614,-15052.12550137,0.00044153,2]
[404659587,1770389451623,-23447.39404887,0.00044153,2]
[404659588,1770389451633,-1868.92478493,0.00044153,2]
[404659589,1770389451643,-1137.83435627,0.00044153,2]
[404659590,1770389451653,-409.64603947,0.00044153,2]
[404659591,1770389451664,-2481.50667357,0.00044153,2]
[404659592,1770389451674,-878.6397162,0.00044153,2]
[404659593,1770389451683,-206.44340137,0.00044153,2]
[404659594,1770389451693,-287.80966578,0.00044153,2]
[404659595,1770389451702,-5787.82560333,0.00044153,2]
[404659596,1770389451713,-2211.27148137,0.00044153,2]
[404659597,1770389451722,-468.75868216,0.00044153,2]
[404659598,1770389451731,-150.0,0.00044153,2]
[404659599,1770389451741,-160.0,0.00044153,2]
[404659600,1770389451751,-203.02786927,0.00044153,2]
[404659601,1770389451760,-755.88349124,0.00044153,2]
[404659602,1770389451769,-1589.7275841,0.00044153,2]
[404659603,1770389451778,-10838.49371494,0.00044153,3]
[404659604,1770389451788,-15188.19395845,0.00044153,3]
[404659605,1770389451797,-166.15971552,0.00044153,10]
[404659606,1770389451807,-7923.23757346,0.00044153,2]
[404659607,1770389451816,-505.77325845,0.00044153,7]
[404659608,1770389451825,-1221.0,0.00044153,4]
[404659609,1770389451834,-2010.58411745,0.00044153,4]
[404659610,1770389451843,-577.77481107,0.00044153,5]
[404659611,1770389451853,-1001.65484888,0.00044153,5]
[404659612,1770389451862,-600.0,0.00044153,5]
[404659613,1770389451872,-19557.47043681,0.00044153,5]
[404659614,1770389451881,-224.3928921,0.00044153,5]
[404659615,1770389451897,-1108.30233888,0.00044153,5]
[404659616,1770389451907,-500.83618088,0.00044153,5]
[404659617,1770389451916,-800.0,0.00044153,5]
[404659618,1770389451926,-639.28632054,0.00044153,6]
[404659619,1770389451935,-1397560.06520705,0.00044153,10]
[404659620,1770389452054,-19784.912362,0.00044153,10]
[404659621,1770389452066,-655576.93135508,0.00044153,10]
[404659622,1770389452114,-149.98066438,0.00034316,2]
[404659623,1770389452161,-302.0,0.00034316,2]
[404659624,1770389452174,-326.53513903,0.00034316,2]
[404659625,1770389452201,-261.21492815,0.00034316,2]
[404659626,1770389452260,-2437.90120008,0.00034316,2]
[404659627,1770389452269,-152.93,0.00038906,14]
[404659628,1770389452279,-157.13832457,0.00044053,2]
[404659629,1770389452288,-1211.0,0.00044095,60]
[404659630,1770389452297,-807.82728308,0.00044095,60]
[404659631,1770389452307,-99234.09417654,0.00044153,10]
[404659632,1770389452319,-3728.07906637,0.00044153,10]
[404659633,1770389452444,-2029.10706716,0.00044153,10]
[404659634,1770389452459,-543.5530026,0.00044153,10]
[404659635,1770389452471,-8143.42500773,0.00044153,10]
[404659636,1770389462752,1006.36089552,0.00044153,30]
[404659642,1770389489505,5000.01,9.914e-05,2]
[404659643,1770389489531,5000.01,9.914e-05,2]
[404659644,1770389489557,5000.01,9.914e-05,2]
[404659645,1770389501504,-4733.5949758,9.914e-05,2]
[404659646,1770389501623,-5000.01,9.914e-05,2]
[404659647,1770389501803,-5000.01,9.914e-05,2]
[404659648,1770389518623,10000.0,0.00044153,51]
[404659649,1770389526866,472.57660428,0.00044153,120]
[404659650,1770389532099,1000.0,0.00044153,80]
[404659658,1770389656030,150.0,0.00033818,120]
[404659659,1770389670985,-276.0926,9.874e-05,2]
[404659660,1770389675099,150.0,9.887e-05,2]
[404659661,1770389691892,262.57,9.9e-05,2]
[404659662,1770389696964,100703.93456622,0.00044154,30]
[404659663,1770389779707,500.0,9.774e-05,2]
[404659664,1770389799727,4237.44,9.814e-05,2]
[404659665,1770389799762,9297.8248,9.814e-05,2]
[404659666,1770389799792,10000.01,9.814e-05,2]
[404659667,1770389799822,10000.01,9.814e-05,2]
[404659668,1770389799851,10000.01,9.814e-05,2]
[404659674,1770389832529,320.352,0.00044154,30]
[404659675,1770389842816,-150.0,9.813e-05,2]
[404659676,1770389842847,-300.0,9.813e-05,2]
[404659677,1770389842878,-300.0,9.813e-05,2]
[404659678,1770389854508,-7471.86995607,9.814e-05,2]
[404659679,1770389860110,160.176,0.00044154,30]
[404659689,1770389909234,-2378.788816,9.764e-05,2]
[404659690,1770389909264,-150.0,9.787e-05,2]
[404659691,1770389909295,-150.0,9.787e-05,2]
[404659692,1770389951674,3267.0,0.00044154,30]
[404659693,1770389955917,-500.0,9.664e-05,2]
[404659694,1770389955967,-9000.01,9.714e-05,2]
[404659695,1770389956155,-3130.5208,9.714e-05,2]
[404659696,1770389956195,-294.36559293,9.813e-05,2]
[404659697,1770389956234,-500.0,9.813e-05,2]
[404659698,1770389956273,-414.66931795,9.813e-05,2]
[404659699,1770389956311,-262.40199476,9.813e-05,2]
[404659700,1770389956349,-296.09458872,9.813e-05,2]
[404659701,1770389956467,-203.90541128,9.813e-05,2]
[404659702,1770389956508,-500.0,9.813e-05,2]
[404659703,1770389956544,-221.28848559,9.813e-05,2]
[404659704,1770389956584,-241.16097439,9.813e-05,2]
[404659705,1770389956636,-614.04510333,9.813e-05,2]
[404659706,1770389956680,-614.04510333,9.813e-05,2]
[404659707,1770389956720,-614.04510333,9.813e-05,2]
[404659708,1770389956760,-614.04510333,9.813e-05,2]
[404659709,1770389956803,-614.04510333,9.813e-05,2]
[404659710,1770389956846,-614.04510333,9.813e-05,2]
[404659711,1770389956890,-92.52473675,9.813e-05,2]
[404659712,1770389957008,-521.52036658,9.813e-05,2]
[404659713,1770389957048,-614.04510333,9.813e-05,2]
[404659714,1770389957088,-614.04510333,9.813e-05,2]
[404659715,1770389957133,-614.04510333,9.813e-05,2]
[404659716,1770389957174,-614.04510333,9.813e-05,2]
[404659717,1770389957216,-614.04510333,9.813e-05,2]
[404659718,1770389957256,-614.04510333,9.813e-05,2]
[404659719,1770389957297,-614.04510333,9.813e-05,2]
[404659720,1770389957679,-521.52036658,9.813e-05,2]
[404659721,1770389957695,-92.52473675,9.813e-05,2]
[404659722,1770389957705,-267.81308347,9.813e-05,2]
[404659723,1770389958787,-346.23201986,9.813e-05,2]
[404659724,1770389958827,-614.04510333,9.813e-05,2]
[404659725,1770389958865,-614.04510333,9.813e-05,2]
[404659726,1770389958905,-614.04510333,9.813e-05,2]
[404659727,1770389958942,-614.04510333,9.813e-05,2]
[404659728,1770389958980,-614.04510333,9.813e-05,2]
[404659729,1770389959017,-614.04510333,9.813e-05,2]
[404659730,1770389959052,-614.04510333,9.813e-05,2]
[404659731,1770389959088,-96.86941033,9.813e-05,2]
[404659732,1770389959198,-517.175693,9.813e-05,2]
[404659733,1770389959233,-614.04510333,9.813e-05,2]
[404659734,1770389959270,-614.04510333,9.813e-05,2]
[404659735,1770389959306,-614.04510333,9.813e-05,2]
[404659736,1770389959342,-614.04510333,9.813e-05,2]
[404659737,1770389959378,-614.04510333,9.813e-05,2]
[404659738,1770389959418,-614.04510333,9.813e-05,2]
[404659739,1770389959738,-614.04510333,9.813e-05,2]
[404659740,1770389959991,-517.175693,9.813e-05,2]
[404659741,1770389960015,-96.86941033,9.813e-05,2]
[404659742,1770389960025,-272.15775705,9.813e-05,2]
[404659743,1770389961881,-341.88734628,9.813e-05,2]
[404659744,1770389961924,-614.04510333,9.813e-05,2]
[404659745,1770389961960,-614.04510333,9.813e-05,2]
[404659746,1770389961995,-614.04510333,9.813e-05,2]
[404659747,1770389962032,-614.04510333,9.813e-05,2]
[404659748,1770389962068,-614.04510333,9.813e-05,2]
[404659749,1770389962106,-614.04510333,9.813e-05,2]
[404659750,1770389962145,-614.04510333,9.813e-05,2]
[404659751,1770389962182,-105.55875749,9.813e-05,2]
[404659752,1770389962340,-508.48634584,9.813e-05,2]
[404659753,1770389962376,-614.04510333,9.813e-05,2]
[404659754,1770389962416,-614.04510333,9.813e-05,2]
[404659755,1770389962451,-614.04510333,9.813e-05,2]
[404659756,1770389962486,-614.04510333,9.813e-05,2]
[404659757,1770389962521,-614.04510333,9.813e-05,2]
[404659758,1770389962558,-614.04510333,9.813e-05,2]
[404659759,1770389962593,-614.04510333,9.813e-05,2]
[404659760,1770389962892,-508.48634584,9.813e-05,2]
[404659761,1770389962909,-105.55875749,9.813e-05,2]
[404659762,1770389962918,-280.84710421,9.813e-05,2]
[404659763,1770389981436,800.88,0.00044154,30]
[404659765,1770390050382,320.352,0.00044154,30]
[404659766,1770390052671,168.81,9.8e-05,2]
[404659767,1770390055299,5943.420859,9.762e-05,2]
[404659770,1770390067804,5000.01,7.945e-05,2]
[404659772,1770390067829,392.394402,7.945e-05,2]